[Event "Schack-SM 2022: Sverigemastarklassen"]
[Site "Fyrishov, Idrottsgatan 2, Uppsala, Sweden"]
[Date "2022.07.07"]
[Round "6.4"]
[White "Hector, Jonny"]
[Black "Carlsson, Ludvig"]
[Result "1-0"]
[TimeControl "90 minutes for 40 moves + 30 minutes for the rest of the game + 30 seconds per move from move one."]
[WhiteTitle "GM"]
[BlackTitle "IM"]
[WhiteFideId "1700090"]
[BlackFideId "1727010"]
[WhiteElo "2441"]
[BlackElo "2399"]

1. e4 {[%clk 01:30:54]} {[%emt 00:00:04]} c5 {[%clk 01:30:45]} {[%emt
00:00:16]} 2. Nf3 {[%clk 01:31:16]} {[%emt 00:00:08]} d6 {[%clk 01:30:57]}
{[%emt 00:00:18]} 3. d4 {[%clk 01:31:41]} {[%emt 00:00:05]} cxd4 {[%clk
01:31:16]} {[%emt 00:00:12]} 4. Nxd4 {[%clk 01:32:04]} {[%emt 00:00:06]} Nf6
{[%clk 01:31:32]} {[%emt 00:00:14]} 5. Nc3 {[%clk 01:32:28]} {[%emt 00:00:06]}
a6 {[%clk 01:31:35]} {[%emt 00:00:27]} 6. Bg5 {[%clk 01:32:38]} {[%emt
00:00:20]} e6 {[%clk 01:31:47]} {[%emt 00:00:18]} 7. f4 {[%clk 01:32:54]}
{[%emt 00:00:14]} Nbd7 {[%clk 01:31:57]} {[%emt 00:00:20]} 8. Qf3 {[%clk
01:29:49]} {[%emt 00:03:35]} Qc7 {[%clk 01:31:38]} {[%emt 00:00:48]} 9. Bd3
{[%clk 01:26:45]} {[%emt 00:03:36]} b5 {[%clk 01:29:47]} {[%emt 00:02:21]} 10.
a3 {[%clk 01:20:37]} {[%emt 00:06:37]} Qb6 {[%clk 01:24:29]} {[%emt 00:05:48]}
11. Bh4 {[%clk 01:16:53]} {[%emt 00:04:13]} Bb7 {[%clk 01:17:54]} {[%emt
00:07:07]} 12. Bf2 {[%clk 01:13:53]} {[%emt 00:03:29]} Qc7 {[%clk 01:17:01]}
{[%emt 00:01:23]} 13. g4 {[%clk 01:05:07]} {[%emt 00:09:16]} d5 {[%clk
01:10:45]} {[%emt 00:06:48]} 14. e5 {[%clk 01:01:47]} {[%emt 00:03:49]} Nxe5
{[%clk 01:08:57]} {[%emt 00:02:18]} 15. fxe5 {[%clk 01:01:51]} {[%emt
00:00:25]} Nd7 {[%clk 01:07:59]} {[%emt 00:01:28]} 16. Bg3 {[%clk 00:51:57]}
{[%emt 00:10:24]} Nxe5 {[%clk 01:03:44]} {[%emt 00:04:45]} 17. Qe2 {[%clk
00:51:57]} {[%emt 00:00:29]} Bd6 {[%clk 01:03:07]} {[%emt 00:01:09]} 18. Bxb5+
{[%clk 00:49:46]} {[%emt 00:02:41]} Kf8 {[%clk 01:01:46]} {[%emt 00:01:51]} 19.
O-O-O {[%clk 00:44:18]} {[%emt 00:05:57]} 1-0

[Event "Schack-SM 2022: Sverigemastarklassen"]
[Site "Fyrishov, Idrottsgatan 2, Uppsala, Sweden"]
[Date "2022.07.07"]
[Round "6.5"]
[White "Blomqvist, Erik"]
[Black "Jogstad, Martin"]
[Result "1-0"]
[TimeControl "90 minutes for 40 moves + 30 minutes for the rest of the game + 30 seconds per move from move one."]
[WhiteTitle "GM"]
[BlackTitle "FM"]
[WhiteFideId "1709437"]
[BlackFideId "1715364"]
[WhiteElo "2521"]
[BlackElo "2384"]

1. e4 {[%clk 01:30:55]} {[%emt 00:00:04]} c6 {[%clk 01:30:41]} {[%emt
00:00:19]} 2. d4 {[%clk 01:31:00]} {[%emt 00:00:25]} d5 {[%clk 01:31:04]}
{[%emt 00:00:06]} 3. e5 {[%clk 01:31:25]} {[%emt 00:00:06]} Bf5 {[%clk
01:31:28]} {[%emt 00:00:07]} 4. h4 {[%clk 01:27:14]} {[%emt 00:04:41]} h5
{[%clk 01:31:51]} {[%emt 00:00:06]} 5. c4 {[%clk 01:27:10]} {[%emt 00:00:34]}
e6 {[%clk 01:32:15]} {[%emt 00:00:06]} 6. Nc3 {[%clk 01:27:29]} {[%emt
00:00:11]} dxc4 {[%clk 01:31:01]} {[%emt 00:01:44]} 7. Bxc4 {[%clk 01:27:34]}
{[%emt 00:00:25]} Nd7 {[%clk 01:31:19]} {[%emt 00:00:11]} 8. Nge2 {[%clk
01:26:52]} {[%emt 00:01:13]} Nh6 {[%clk 01:24:55]} {[%emt 00:06:54]} 9. Ng3
{[%clk 01:21:44]} {[%emt 00:05:39]} Bg6 {[%clk 01:25:10]} {[%emt 00:00:14]} 10.
Be2 {[%clk 01:11:47]} {[%emt 00:10:26]} Qb6 {[%clk 00:51:09]} {[%emt 00:34:31]}
11. a3 {[%clk 01:08:25]} {[%emt 00:03:53]} Rd8 {[%clk 00:46:26]} {[%emt
00:05:13]} 12. Bg5 {[%clk 00:57:11]} {[%emt 00:11:44]} Be7 {[%clk 00:45:52]}
{[%emt 00:01:04]} 13. Na4 {[%clk 00:52:54]} {[%emt 00:04:47]} Qc7 {[%clk
00:43:03]} {[%emt 00:03:18]} 14. Bxe7 {[%clk 00:51:14]} {[%emt 00:02:11]} Kxe7
{[%clk 00:42:33]} {[%emt 00:00:59]} 15. Qc1 {[%clk 00:45:50]} {[%emt 00:05:55]}
Qa5+ {[%clk 00:26:08]} {[%emt 00:16:57]} 16. Nc3 {[%clk 00:45:41]} {[%emt
00:00:38]} Qb6 {[%clk 00:26:28]} {[%emt 00:00:10]} 17. Qg5+ {[%clk 00:43:28]}
{[%emt 00:02:42]} Ke8 {[%clk 00:23:06]} {[%emt 00:03:52]} 18. O-O-O {[%clk
00:41:08]} {[%emt 00:02:49]} Nf8 {[%clk 00:19:53]} {[%emt 00:03:43]} 19. Bxh5
{[%clk 00:38:00]} {[%emt 00:03:39]} Nh7 {[%clk 00:16:17]} {[%emt 00:04:07]} 20.
Qf4 {[%clk 00:38:02]} {[%emt 00:00:27]} Bxh5 {[%clk 00:13:54]} {[%emt
00:02:53]} 21. Nxh5 {[%clk 00:38:26]} {[%emt 00:00:06]} Nf5 {[%clk 00:13:44]}
{[%emt 00:00:40]} 22. g4 {[%clk 00:34:57]} {[%emt 00:03:58]} Rxd4 {[%clk
00:12:19]} {[%emt 00:01:56]} 23. Rxd4 {[%clk 00:33:30]} {[%emt 00:01:57]} Nxd4
{[%clk 00:12:24]} {[%emt 00:00:24]} 24. Rd1 {[%clk 00:28:22]} {[%emt 00:05:37]}
c5 {[%clk 00:12:47]} {[%emt 00:00:09]} 25. Nxg7+ {[%clk 00:28:20]} {[%emt
00:00:32]} Ke7 {[%clk 00:10:54]} {[%emt 00:02:22]} 26. Nf5+ {[%clk 00:28:13]}
{[%emt 00:00:37]} exf5 {[%clk 00:10:10]} {[%emt 00:01:15]} 27. Rxd4 {[%clk
00:28:26]} {[%emt 00:00:17]} Qa6 {[%clk 00:07:51]} {[%emt 00:02:49]} 28. Rd6
{[%clk 00:28:18]} {[%emt 00:00:38]} Qf1+ {[%clk 00:08:03]} {[%emt 00:00:17]} 29.
Rd1 {[%clk 00:28:35]} {[%emt 00:00:13]} Qa6 {[%clk 00:08:21]} {[%emt 00:00:12]}
30. gxf5 {[%clk 00:28:07]} {[%emt 00:00:58]} Rd8 {[%clk 00:08:21]} {[%emt
00:00:31]} 31. Nd5+ {[%clk 00:27:58]} {[%emt 00:00:39]} Kf8 {[%clk 00:08:20]}
{[%emt 00:00:32]} 32. e6 {[%clk 00:27:58]} {[%emt 00:00:29]} Kg8 {[%clk
00:06:24]} {[%emt 00:02:25]} 33. Ne7+ {[%clk 00:27:27]} {[%emt 00:01:01]} Kg7
{[%clk 00:06:28]} {[%emt 00:00:27]} 34. Rxd8 {[%clk 00:27:40]} {[%emt
00:00:17]} f6 {[%clk 00:06:36]} {[%emt 00:00:22]} 35. Rg8# {[%clk 00:27:56]}
{[%emt 00:00:13]} 1-0

[Event "Schack-SM 2022: Sverigemastarklassen"]
[Site "Fyrishov, Idrottsgatan 2, Uppsala, Sweden"]
[Date "2022.07.06"]
[Round "5.1"]
[White "Smith, Axel"]
[Black "Westerberg, Jonathan"]
[Result "0-1"]
[TimeControl "90 minutes for 40 moves + 30 minutes for the rest of the game + 30 seconds per move from move one."]
[WhiteTitle "GM"]
[BlackTitle "GM"]
[WhiteFideId "1707930"]
[BlackFideId "1701754"]
[WhiteElo "2417"]
[BlackElo "2476"]

1. e4 {[%clk 01:30:57]} {[%emt 00:00:02]} c5 {[%clk 01:27:26]} {[%emt
00:03:33]} 2. Nf3 {[%clk 01:31:24]} {[%emt 00:00:04]} Nc6 {[%clk 01:26:42]}
{[%emt 00:01:12]} 3. Bb5 {[%clk 01:31:53]} {[%emt 00:00:04]} g6 {[%clk
01:26:34]} {[%emt 00:00:34]} 4. O-O {[%clk 01:32:16]} {[%emt 00:00:10]} Bg7
{[%clk 01:26:58]} {[%emt 00:00:04]} 5. c3 {[%clk 01:32:34]} {[%emt 00:00:14]}
Nf6 {[%clk 01:26:20]} {[%emt 00:01:07]} 6. d4 {[%clk 01:32:51]} {[%emt
00:00:14]} Nxe4 {[%clk 01:20:02]} {[%emt 00:06:47]} 7. d5 {[%clk 01:33:19]}
{[%emt 00:00:02]} Nb8 {[%clk 01:16:25]} {[%emt 00:04:08]} 8. Re1 {[%clk
01:30:17]} {[%emt 00:03:31]} Nd6 {[%clk 01:12:55]} {[%emt 00:04:00]} 9. Bd3
{[%clk 01:14:24]} {[%emt 00:16:23]} O-O {[%clk 01:13:17]} {[%emt 00:00:07]} 10.
h4 {[%clk 01:06:07]} {[%emt 00:08:48]} Ne8 {[%clk 01:10:28]} {[%emt 00:03:20]}
11. h5 {[%clk 01:02:05]} {[%emt 00:04:32]} d6 {[%clk 01:10:55]} {[%emt
00:00:02]} 12. hxg6 {[%clk 00:51:09]} {[%emt 00:11:26]} hxg6 {[%clk 01:11:15]}
{[%emt 00:00:09]} 13. Ng5 {[%clk 00:51:12]} {[%emt 00:00:28]} Nf6 {[%clk
01:10:04]} {[%emt 00:01:41]} 14. c4 {[%clk 00:48:03]} {[%emt 00:03:40]} Nbd7
{[%clk 01:08:36]} {[%emt 00:01:58]} 15. f4 {[%clk 00:36:47]} {[%emt 00:11:45]}
Nh7 {[%clk 00:48:36]} {[%emt 00:20:31]} 16. Nxh7 {[%clk 00:28:14]} {[%emt
00:09:03]} Kxh7 {[%clk 00:48:36]} {[%emt 00:00:28]} 17. Nd2 {[%clk 00:15:36]}
{[%emt 00:13:10]} Bd4+ {[%clk 00:41:34]} {[%emt 00:07:32]} 18. Kf1 {[%clk
00:16:05]} f5 {[%clk 00:40:53]} {[%emt 00:01:11]} 19. Nf3 {[%clk 00:15:44]}
{[%emt 00:00:51]} Bf6 {[%clk 00:41:21]} {[%emt 00:00:01]} 20. Qc2 {[%clk
00:14:15]} {[%emt 00:02:00]} Kg7 {[%clk 00:38:56]} {[%emt 00:02:54]} 21. a4
{[%clk 00:10:39]} {[%emt 00:04:07]} Re8 {[%clk 00:31:35]} {[%emt 00:07:50]} 22.
g4 {[%clk 00:03:51]} {[%emt 00:07:18]} fxg4 {[%clk 00:31:29]} {[%emt 00:00:36]}
23. Nh2 {[%clk 00:02:43]} {[%emt 00:01:38]} Rh8 {[%clk 00:18:04]} {[%emt
00:13:55]} 24. Nxg4 {[%clk 00:02:27]} {[%emt 00:00:46]} Bh4 {[%clk 00:13:09]}
{[%emt 00:05:25]} 25. Bd2 {[%clk 00:00:41]} {[%emt 00:02:17]} Bxe1 {[%clk
00:11:24]} {[%emt 00:02:15]} 26. Rxe1 {[%clk 00:01:09]} {[%emt 00:00:02]} Rh1+
{[%clk 00:11:29]} {[%emt 00:00:23]} 27. Kg2 {[%clk 00:01:37]} {[%emt 00:00:04]}
Rxe1 {[%clk 00:11:42]} {[%emt 00:00:17]} 28. Bxe1 {[%clk 00:02:06]} {[%emt
00:00:01]} Nf6 {[%clk 00:11:07]} {[%emt 00:01:05]} 29. Nf2 {[%clk 00:00:42]}
{[%emt 00:01:54]} Qe8 {[%clk 00:06:52]} {[%emt 00:04:44]} 30. Bc3 {[%clk
00:01:09]} {[%emt 00:00:03]} Bf5 {[%clk 00:07:13]} {[%emt 00:00:09]} 31. Ne4
{[%clk 00:00:36]} {[%emt 00:01:04]} Bxe4+ {[%clk 00:05:19]} {[%emt 00:02:24]}
32. Bxe4 {[%clk 00:01:05]} Qf7 {[%clk 00:05:32]} {[%emt 00:00:16]} 33. Bf3
{[%clk 00:00:40]} {[%emt 00:00:55]} Rh8 {[%clk 00:05:40]} {[%emt 00:00:21]} 34.
a5 {[%clk 00:00:39]} {[%emt 00:00:33]} Qe8 {[%clk 00:04:48]} {[%emt 00:01:22]}
35. Qe2 {[%clk 00:00:35]} {[%emt 00:00:34]} Qd7 {[%clk 00:04:29]} {[%emt
00:00:46]} 36. Bg4 {[%clk 00:00:57]} {[%emt 00:00:11]} Qe8 {[%clk 00:04:09]}
{[%emt 00:00:50]} 37. Qe6 {[%clk 00:00:36]} {[%emt 00:00:50]} Rf8 {[%clk
00:02:45]} {[%emt 00:01:54]} 38. Qe2 {[%clk 00:00:39]} {[%emt 00:00:28]} Rh8
{[%clk 00:01:50]} {[%emt 00:01:25]} 39. Qe6 {[%clk 00:00:52]} {[%emt 00:00:17]}
Qf7 {[%clk 00:02:05]} {[%emt 00:00:14]} 40. Qe2 {[%clk 00:00:40]} {[%emt
00:00:42]} b6 {[%clk 00:00:46]} {[%emt 00:01:50]} 41. Be6 {[%clk 00:23:14]}
{[%emt 00:07:56]} Qe8 {[%clk 00:29:34]} {[%emt 00:01:41]} 42. a6 {[%clk
00:16:25]} {[%emt 00:07:19]} Kf8 {[%clk 00:24:37]} {[%emt 00:05:26]} 43. Qd3
{[%clk 00:06:50]} {[%emt 00:10:06]} Rh7 {[%clk 00:23:11]} {[%emt 00:01:55]} 44.
b3 {[%clk 00:06:30]} {[%emt 00:00:51]} Kg7 {[%clk 00:19:37]} {[%emt 00:04:04]}
45. Qe3 {[%clk 00:03:58]} {[%emt 00:03:03]} b5 {[%clk 00:12:47]} {[%emt
00:07:19]} 46. Bh3 {[%clk 00:01:57]} {[%emt 00:02:32]} bxc4 {[%clk 00:10:45]}
{[%emt 00:02:31]} 47. bxc4 {[%clk 00:02:26]} {[%emt 00:00:01]} Kf8 {[%clk
00:09:34]} {[%emt 00:01:40]} 48. Qe6 {[%clk 00:01:44]} {[%emt 00:01:13]} Rf7
{[%clk 00:08:59]} {[%emt 00:01:05]} 49. Bd2 {[%clk 00:00:36]} {[%emt 00:01:38]}
Qa4 {[%clk 00:07:53]} {[%emt 00:01:36]} 50. f5 {[%clk 00:00:51]} {[%emt
00:00:15]} g5 {[%clk 00:07:24]} {[%emt 00:00:59]} 51. Qe2 {[%clk 00:00:32]}
{[%emt 00:00:50]} Qxa6 {[%clk 00:06:45]} {[%emt 00:01:09]} 52. Kf2 {[%clk
00:00:33]} {[%emt 00:00:28]} Qa2 {[%clk 00:06:16]} {[%emt 00:00:59]} 53. Bg2
{[%clk 00:00:39]} {[%emt 00:00:24]} Qc2 {[%clk 00:06:00]} {[%emt 00:00:43]} 54.
Kg1 {[%clk 00:00:50]} {[%emt 00:00:22]} Qxf5 {[%clk 00:06:03]} {[%emt
00:00:26]} 55. Be1 {[%clk 00:00:55]} {[%emt 00:00:26]} Qf4 {[%clk 00:03:55]}
{[%emt 00:02:35]} 56. Bf3 {[%clk 00:00:49]} {[%emt 00:00:38]} g4 {[%clk
00:03:24]} {[%emt 00:01:01]} 57. Bg2 {[%clk 00:01:18]} g3 {[%clk 00:02:52]}
{[%emt 00:01:03]} 58. Qd3 {[%clk 00:01:45]} {[%emt 00:00:02]} Ng4 {[%clk
00:02:37]} {[%emt 00:00:45]} 59. Qxg3 {[%clk 00:00:55]} {[%emt 00:01:20]} Qxg3
{[%clk 00:03:00]} {[%emt 00:00:06]} 60. Bxg3 {[%clk 00:01:22]} {[%emt
00:00:04]} Ne3 {[%clk 00:03:23]} {[%emt 00:00:06]} 61. Bh3 {[%clk 00:01:04]}
{[%emt 00:00:49]} Rf3 {[%clk 00:03:30]} {[%emt 00:00:22]} 62. Kh2 {[%clk
00:01:07]} {[%emt 00:00:28]} Nf1+ {[%clk 00:03:35]} {[%emt 00:00:25]} 63. Bxf1
{[%clk 00:01:32]} {[%emt 00:00:05]} Rxf1 {[%clk 00:04:02]} {[%emt 00:00:03]} 64.
Kh3 {[%clk 00:01:01]} {[%emt 00:01:01]} Rc1 {[%clk 00:04:21]} {[%emt 00:00:11]}
65. Bf4 {[%clk 00:01:27]} {[%emt 00:00:04]} Rxc4 {[%clk 00:04:45]} {[%emt
00:00:06]} 0-1

[Event "Schack-SM 2022: Sverigemastarklassen"]
[Site "Fyrishov, Idrottsgatan 2, Uppsala, Sweden"]
[Date "2022.07.06"]
[Round "5.2"]
[White "Blomqvist, Erik"]
[Black "Cramling, Pia"]
[Result "1-0"]
[TimeControl "90 minutes for 40 moves + 30 minutes for the rest of the game + 30 seconds per move from move one."]
[WhiteTitle "GM"]
[BlackTitle "GM"]
[WhiteFideId "1709437"]
[BlackFideId "1700030"]
[WhiteElo "2521"]
[BlackElo "2459"]

1. e4 {[%clk 01:30:56]} {[%emt 00:00:03]} c5 {[%clk 01:28:33]} {[%emt
00:02:28]} 2. Nf3 {[%clk 01:31:08]} {[%emt 00:00:17]} d6 {[%clk 01:28:25]}
{[%emt 00:00:37]} 3. d4 {[%clk 01:31:01]} {[%emt 00:00:38]} cxd4 {[%clk
01:27:50]} {[%emt 00:01:05]} 4. Nxd4 {[%clk 01:31:24]} {[%emt 00:00:08]} Nf6
{[%clk 01:28:12]} {[%emt 00:00:07]} 5. Nc3 {[%clk 01:31:43]} {[%emt 00:00:12]}
Nc6 {[%clk 01:28:19]} {[%emt 00:00:22]} 6. Bg5 {[%clk 01:30:07]} {[%emt
00:02:06]} e6 {[%clk 01:28:30]} {[%emt 00:00:17]} 7. Qd2 {[%clk 01:29:30]}
{[%emt 00:01:10]} a6 {[%clk 01:28:43]} {[%emt 00:00:17]} 8. O-O-O {[%clk
01:29:41]} {[%emt 00:00:19]} Bd7 {[%clk 01:28:55]} {[%emt 00:00:17]} 9. Kb1
{[%clk 01:29:02]} {[%emt 00:01:09]} Be7 {[%clk 01:15:05]} {[%emt 00:14:19]} 10.
f3 {[%clk 01:24:47]} {[%emt 00:04:47]} Nxd4 {[%clk 01:12:03]} {[%emt 00:03:32]}
11. Qxd4 {[%clk 01:25:00]} {[%emt 00:00:18]} Qc7 {[%clk 01:09:54]} {[%emt
00:02:37]} 12. h4 {[%clk 01:18:33]} {[%emt 00:06:57]} Rc8 {[%clk 01:03:45]}
{[%emt 00:06:38]} 13. Qd2 {[%clk 01:15:16]} {[%emt 00:03:48]} b5 {[%clk
00:49:16]} {[%emt 00:15:00]} 14. Ne2 {[%clk 01:12:40]} {[%emt 00:03:05]} b4
{[%clk 00:38:58]} {[%emt 00:10:49]} 15. g4 {[%clk 00:48:29]} {[%emt 00:24:40]}
O-O {[%clk 00:32:48]} {[%emt 00:06:40]} 16. Nd4 {[%clk 00:45:14]} {[%emt
00:03:46]} Rfd8 {[%clk 00:29:04]} {[%emt 00:04:13]} 17. Bd3 {[%clk 00:43:35]}
{[%emt 00:02:09]} Be8 {[%clk 00:26:04]} {[%emt 00:03:30]} 18. h5 {[%clk
00:38:08]} {[%emt 00:05:57]} a5 {[%clk 00:25:38]} {[%emt 00:00:57]} 19. Be3
{[%clk 00:35:08]} {[%emt 00:03:30]} Nd7 {[%clk 00:24:18]} {[%emt 00:01:49]} 20.
g5 {[%clk 00:35:08]} {[%emt 00:00:31]} Nc5 {[%clk 00:22:29]} {[%emt 00:02:18]}
21. Qh2 {[%clk 00:08:59]} {[%emt 00:26:39]} a4 {[%clk 00:20:50]} {[%emt
00:02:09]} 22. Bb5 {[%clk 00:05:38]} {[%emt 00:03:52]} b3 {[%clk 00:15:21]}
{[%emt 00:05:59]} 23. Bxe8 {[%clk 00:04:13]} {[%emt 00:01:55]} Rxe8 {[%clk
00:10:28]} {[%emt 00:05:23]} 24. g6 {[%clk 00:04:22]} {[%emt 00:00:21]} Bf6
{[%clk 00:09:21]} {[%emt 00:01:36]} 25. Nb5 {[%clk 00:04:26]} {[%emt 00:00:27]}
Qb8 {[%clk 00:02:35]} {[%emt 00:07:15]} 26. gxf7+ {[%clk 00:04:50]} {[%emt
00:00:07]} Kxf7 {[%clk 00:03:00]} {[%emt 00:00:05]} 27. Nxd6+ {[%clk 00:05:14]}
{[%emt 00:00:07]} Kg8 {[%clk 00:03:26]} {[%emt 00:00:03]} 28. cxb3 {[%clk
00:04:55]} {[%emt 00:00:49]} axb3 {[%clk 00:03:49]} {[%emt 00:00:06]} 29. a3
{[%clk 00:03:52]} {[%emt 00:01:34]} Bxb2 {[%clk 00:00:41]} {[%emt 00:03:37]} 30.
Bxc5 {[%clk 00:02:41]} {[%emt 00:01:41]} Rxc5 {[%clk 00:00:32]} {[%emt
00:00:39]} 31. Qxb2 {[%clk 00:02:56]} {[%emt 00:00:15]} 1-0

[Event "Schack-SM 2022: Sverigemastarklassen"]
[Site "Fyrishov, Idrottsgatan 2, Uppsala, Sweden"]
[Date "2022.07.06"]
[Round "5.3"]
[White "Johansson, Linus"]
[Black "Hector, Jonny"]
[Result "1/2-1/2"]
[TimeControl "90 minutes for 40 moves + 30 minutes for the rest of the game + 30 seconds per move from move one."]
[WhiteTitle "IM"]
[BlackTitle "GM"]
[WhiteFideId "1711113"]
[BlackFideId "1700090"]
[WhiteElo "2468"]
[BlackElo "2441"]

1. d4 {[%clk 01:30:56]} {[%emt 00:00:03]} d5 {[%clk 01:30:56]} {[%emt
00:00:04]} 2. c4 {[%clk 01:31:20]} {[%emt 00:00:06]} c6 {[%clk 01:31:18]}
{[%emt 00:00:08]} 3. Nf3 {[%clk 01:31:44]} {[%emt 00:00:07]} Nf6 {[%clk
01:31:40]} {[%emt 00:00:06]} 4. Nc3 {[%clk 01:32:10]} {[%emt 00:00:06]} dxc4
{[%clk 01:32:01]} {[%emt 00:00:09]} 5. a4 {[%clk 01:32:34]} {[%emt 00:00:06]}
Bf5 {[%clk 01:32:23]} {[%emt 00:00:06]} 6. Ne5 {[%clk 01:33:00]} {[%emt
00:00:06]} Nbd7 {[%clk 01:32:08]} {[%emt 00:00:44]} 7. Nxc4 {[%clk 01:33:24]}
{[%emt 00:00:06]} Qc7 {[%clk 01:32:25]} {[%emt 00:00:12]} 8. g3 {[%clk
01:33:47]} {[%emt 00:00:07]} e5 {[%clk 01:32:45]} {[%emt 00:00:10]} 9. dxe5
{[%clk 01:34:13]} {[%emt 00:00:06]} Nxe5 {[%clk 01:33:03]} {[%emt 00:00:12]} 10.
Bf4 {[%clk 01:34:38]} {[%emt 00:00:05]} Nfd7 {[%clk 01:33:10]} {[%emt
00:00:22]} 11. Bg2 {[%clk 01:34:59]} {[%emt 00:00:08]} Rd8 {[%clk 01:33:03]}
{[%emt 00:00:37]} 12. O-O {[%clk 01:31:13]} {[%emt 00:04:17]} Be6 {[%clk
01:32:54]} {[%emt 00:00:39]} 13. Nxe5 {[%clk 01:27:59]} {[%emt 00:03:44]} Nxe5
{[%clk 01:33:05]} {[%emt 00:00:19]} 14. Qc1 {[%clk 01:28:21]} {[%emt 00:00:09]}
Qa5 {[%clk 01:32:18]} {[%emt 00:01:16]} 15. Nb5 {[%clk 01:09:27]} {[%emt
00:19:24]} f6 {[%clk 00:59:28]} {[%emt 00:33:20]} 16. Bxe5 {[%clk 01:05:48]}
{[%emt 00:04:09]} fxe5 {[%clk 00:59:46]} {[%emt 00:00:11]} 17. Qg5 {[%clk
00:51:49]} {[%emt 00:14:30]} cxb5 {[%clk 00:57:14]} {[%emt 00:03:02]} 18. Qh5+
{[%clk 00:49:16]} {[%emt 00:03:03]} Bf7 {[%clk 00:46:48]} {[%emt 00:10:55]} 19.
Qxe5+ {[%clk 00:49:32]} {[%emt 00:00:14]} Be7 {[%clk 00:47:10]} {[%emt
00:00:09]} 20. Qxg7 {[%clk 00:49:39]} {[%emt 00:00:23]} Rg8 {[%clk 00:47:16]}
{[%emt 00:00:23]} 21. Qxh7 {[%clk 00:49:30]} {[%emt 00:00:40]} b4 {[%clk
00:41:12]} {[%emt 00:06:34]} 22. Bxb7 {[%clk 00:46:27]} {[%emt 00:03:33]} Bf6
{[%clk 00:36:29]} {[%emt 00:05:13]} 23. Rad1 {[%clk 00:41:07]} {[%emt
00:05:50]} Rxd1 {[%clk 00:28:44]} {[%emt 00:08:15]} 24. Rxd1 {[%clk 00:41:19]}
{[%emt 00:00:19]} Rh8 {[%clk 00:21:26]} {[%emt 00:07:47]} 25. Qe4+ {[%clk
00:38:10]} {[%emt 00:03:39]} Kf8 {[%clk 00:21:54]} {[%emt 00:00:02]} 26. Bd5
{[%clk 00:36:58]} {[%emt 00:01:43]} Qxa4 {[%clk 00:20:01]} {[%emt 00:02:22]} 27.
Rd3 {[%clk 00:33:50]} {[%emt 00:03:38]} Qb5 {[%clk 00:15:02]} {[%emt 00:05:29]}
28. Bxf7 {[%clk 00:26:40]} {[%emt 00:07:41]} Kxf7 {[%clk 00:15:28]} {[%emt
00:00:03]} 29. Rd5 {[%clk 00:27:04]} {[%emt 00:00:06]} Qc6 {[%clk 00:13:39]}
{[%emt 00:02:19]} 30. Qf5 {[%clk 00:25:47]} {[%emt 00:01:47]} Ke7 {[%clk
00:09:15]} {[%emt 00:04:53]} 31. Rc5 {[%clk 00:21:46]} {[%emt 00:04:32]} Qd6
{[%clk 00:07:08]} {[%emt 00:02:37]} 32. Qe4+ {[%clk 00:21:17]} {[%emt
00:00:59]} Kf7 {[%clk 00:07:11]} {[%emt 00:00:26]} 33. Qc4+ {[%clk 00:20:40]}
{[%emt 00:01:08]} Qe6 {[%clk 00:05:48]} {[%emt 00:01:53]} 34. Rc7+ {[%clk
00:20:36]} {[%emt 00:00:35]} Be7 {[%clk 00:06:15]} {[%emt 00:00:02]} 35. Qf4+
{[%clk 00:18:06]} {[%emt 00:03:00]} Kg6 {[%clk 00:06:02]} {[%emt 00:00:42]} 36.
Qd2 {[%clk 00:13:05]} {[%emt 00:05:32]} Rd8 {[%clk 00:03:48]} {[%emt 00:02:44]}
37. Qc2+ {[%clk 00:13:16]} {[%emt 00:00:19]} Kh6 {[%clk 00:04:00]} {[%emt
00:00:18]} 38. h4 {[%clk 00:11:55]} {[%emt 00:01:51]} b3 {[%clk 00:03:55]}
{[%emt 00:00:35]} 39. Qc1+ {[%clk 00:11:10]} {[%emt 00:01:15]} Kg6 {[%clk
00:04:07]} {[%emt 00:00:17]} 40. Qb1+ {[%clk 00:06:10]} {[%emt 00:05:32]} Kh6
{[%clk 00:01:41]} {[%emt 00:02:56]} 41. Qc1+ {[%clk 00:24:01]} {[%emt
00:12:39]} Kg6 {[%clk 00:29:02]} {[%emt 00:03:08]} 42. Qf4 {[%clk 00:22:02]}
{[%emt 00:02:29]} Rf8 {[%clk 00:23:49]} {[%emt 00:05:43]} 43. Qd2 {[%clk
00:16:23]} {[%emt 00:06:08]} Rd8 {[%clk 00:15:12]} {[%emt 00:09:08]} 44. Qf4
{[%clk 00:16:16]} {[%emt 00:00:38]} Rf8 {[%clk 00:15:35]} {[%emt 00:00:06]} 45.
Qd2 {[%clk 00:16:35]} {[%emt 00:00:11]} Rd8 {[%clk 00:15:41]} {[%emt 00:00:23]}
46. Qf4 {[%clk 00:14:22]} {[%emt 00:02:43]} 1/2-1/2